[Event "44th Chess Olympiad Open 2022"]
[Site "Chennai"]
[Date "2022.07.29"]
[Round "1.64"]
[White "Kantans, Toms"]
[Black "Moncur, Cecil"]
[Result "1-0"]
[WhiteElo "2486"]
[BlackElo "1815"]
[Annotator "TA"]
[PlyCount "81"]
[EventDate "2022.??.??"]
[TimeControl "60"]

{[%evp 22,81,43,58,80,79,91,86,105,108,124,124,124,112,124,123,123,123,124,125,
129,123,120,121,118,123,125,121,125,108,118,114,125,127,153,156,148,123,118,
108,173,128,130,128,156,164,266,264,261,261,281,260,281,276,355,351,375,382,
407,423,728,702]} 1. e4 {[%emt 0:00:06]} c5 {[%emt 0:00:07]} 2. Nf3 {[%emt 0:
00:00]} e6 {[%emt 0:00:04]} 3. g3 {[%emt 0:00:29]} g6 {[%emt 0:01:54]} 4. Bg2 {
[%emt 0:00:59]} Bg7 {[%emt 0:00:35]} 5. d4 {[%emt 0:00:09]} cxd4 {[%emt 0:00:
00]} 6. Nxd4 {[%emt 0:00:07]} Ne7 {[%emt 0:02:06]} 7. O-O {[%emt 0:02:37]} O-O
{[%emt 0:01:15]} 8. Nc3 {[%emt 0:01:09]} d5 {[%emt 0:03:27]} 9. exd5 {[%emt 0:
00:00]} Nxd5 {[%emt 0:00:27]} 10. Nxd5 {[%emt 0:01:12]} exd5 {[%emt 0:00:10]}
11. c3 {[%emt 0:03:40]} Nc6 {[%emt 0:07:01]} 12. Be3 {[%emt 0:02:15]} Nxd4 {
[%emt 0:02:56] B26: Closed Sicilian: 3 g3, lines with early Be3.} 13. Bxd4 {
[%emt 0:00:10]} Be6 {[%emt 0:00:12] [#]} 14. Re1 $146 {[%emt 0:01:37]} ({
Predecessor:} 14. Qb3 Bxd4 15. cxd4 b6 16. Rac1 Qd7 17. Rc3 Rac8 18. Rfc1 Rc4
19. Qd1 Rfc8 20. Bf1 Rxc3 21. Rxc3 {½-½ (69) Wen,G-Zhou,Y Beijing 1975})
14... Bxd4 {[%emt 0:05:49] White is better.} 15. Qxd4 {[%emt 0:00:23]} (15.
cxd4 $6 Qa5 $11) 15... Qb6 {[%emt 0:00:01]} 16. Qxb6 {[%emt 0:02:31] White is
more active.} axb6 {[%emt 0:00:11]} 17. a3 {[%emt 0:00:09]} Rfc8 {[%emt 0:00:
00]} 18. Rad1 {[%emt 0:00:30]} Rc5 {[%emt 0:00:17]} 19. Rd4 {[%emt 0:00:15]} b5
{[%emt 0:01:03]} 20. Red1 {[%emt 0:03:07][%cal Rg2d5]} Rd8 {[%emt 0:02:44]} 21.
g4 {[%emt 0:00:43]} h6 {[%emt 0:04:10]} 22. Bf1 {[%emt 0:03:41]} Kg7 {[%emt 0:
00:00]} 23. Kg2 {[%emt 0:00:23]} Ra8 {[%emt 0:02:04]} 24. Kg3 {[%emt 0:00:34]}
Ra4 {[%emt 0:00:48]} 25. Rb4 {[%emt 0:00:46]} Bd7 {[%emt 0:00:45]} 26. Be2 {
[%emt 0:07:30]} Be6 {[%emt 0:01:33]} 27. f4 {[%emt 0:02:54]} Ra5 {[%emt 0:00:
00]} 28. Rd2 {[%emt 0:04:59]} Kf6 {[%emt 0:01:27]} 29. Bd1 {[%emt 0:03:17]} Rc4
{[%emt 0:01:37]} 30. Bf3 {[%emt 0:02:08]} Rc5 {[%emt 0:01:52]} (30... Rxb4 $16
31. axb4 (31. cxb4 Ra6 $16) 31... Ra8) 31. Kf2 {[%emt 0:09:23]} Ke7 {[%emt 0:
00:00]} 32. Ke3 {[%emt 0:12:50]} Kd6 {[%emt 0:02:12]} 33. Rbd4 {[%emt 0:00:28]}
f5 {[%emt 0:06:43]} (33... f6 $142 34. f5 gxf5) 34. gxf5 $18 {[%emt 0:00:22]}
gxf5 {[%emt 0:00:01]} 35. Rg2 {[%emt 0:00:21]} Ra4 {[%emt 0:03:42]} 36. Be2 {
[%emt 0:01:14]} Ra8 {[%emt 0:02:35]} 37. Rg6 {[%emt 0:02:09]} Rg8 {[%emt 0:00:
00]} 38. Rxh6 {[%emt 0:00:46]} Rg1 {[%emt 0:00:18]} 39. Rb4 {[%emt 0:00:51]}
Re1 {[%emt 0:01:05]} 40. Kf2 {[%emt 0:00:35][%csl Yb5,Ye1]} Rb1 {[%emt 0:00:00]
} (40... Rc1 $142 41. Bxb5 (41. Rxb5 Rxb5 42. Bxb5 Rc2+ 43. Ke3 Rxb2 $18) 41...
Ke7) 41. Bxb5 {[%emt 0:31:00] Weighted Error Value: White=0.04 (flawless) /
Black=0.19 (very precise)} 1-0

[Event "44th Chess Olympiad Open 2022"]
[Site "Chennai"]
[Date "2022.07.29"]
[Round "1.64"]
[White "Golubovskis, Maksims"]
[Black "Lockhart, Kenville"]
[Result "1-0"]
[WhiteElo "2219"]
[BlackElo "1551"]
[Annotator "NA RC"]
[PlyCount "57"]
[EventDate "2022.??.??"]
[TimeControl "60"]

1. e4 {[%emt 0:00:04]} d5 {[%emt 0:00:12]} 2. exd5 {[%emt 0:00:16]} Qxd5 {
[%emt 0:00:04]} 3. Nc3 {[%emt 0:00:17]} Qa5 {[%emt 0:00:04]} 4. d4 {[%emt 0:00:
00]} c6 {[%emt 0:00:06]} 5. Nf3 {[%emt 0:00:16]} Bf5 {[%emt 0:00:20]} 6. Bc4 {
[%emt 0:00:32]} e6 {[%emt 0:00:05]} 7. O-O {[%emt 0:00:30]} Nd7 {[%emt 0:00:36]
} 8. Bd2 {[%emt 0:07:14]} Ngf6 {[%emt 0:02:02]} 9. d5 {[%emt 0:07:38]} Qc5 {
[%emt 0:11:45]} 10. dxe6 {[%emt 0:02:25]} Qxc4 {[%emt 0:00:59]} 11. exd7+ {
[%emt 0:02:56]} Nxd7 {[%emt 0:00:40]} 12. Re1+ {[%emt 0:02:58]} Be7 {[%emt 0:
00:00]} 13. b3 {[%emt 0:08:34]} Qc5 {[%emt 0:03:17]} 14. Qe2 {[%emt 0:13:08]}
Be6 {[%emt 0:01:14]} 15. Ne4 {[%emt 0:00:23]} Qh5 {[%emt 0:03:55]} 16. Ng3 {
[%emt 0:14:58]} Qg6 {[%emt 0:01:58]} 17. Nd4 {[%emt 0:01:18]} Nf8 {[%emt 0:00:
00]} 18. Ndf5 {[%emt 0:04:30]} Qf6 {[%emt 0:04:49]} 19. Nh5 {[%emt 0:00:50]}
Qg6 {[%emt 0:01:25]} 20. Nhxg7+ {[%emt 0:00:45]} Kd8 {[%emt 0:01:14]} 21. Rad1
{[%emt 0:03:36]} Nd7 {[%emt 0:00:55]} 22. Nxe6+ {[%emt 0:09:03]} fxe6 {[%emt 0:
00:00]} 23. Nxe7 {[%emt 0:01:42]} Kxe7 {[%emt 0:00:02]} 24. Bg5+ {[%emt 0:00:
00]} Qxg5 {[%emt 0:01:59]} 25. Qxe6+ {[%emt 0:00:15]} Kf8 {[%emt 0:00:25]} 26.
Rxd7 {[%emt 0:00:23]} Qg6 {[%emt 0:02:01]} 27. Qe7+ {[%emt 0:00:17]} Kg8 {
[%emt 0:00:03]} 28. Re6 {[%emt 0:00:33]} Qg4 {[%emt 0:06:14]} 29. Qf7# {
[%emt 0:00:47]} 1-0

[Event "44th Chess Olympiad Open 2022"]
[Site "Chennai"]
[Date "2022.07.29"]
[Round "1.64"]
[White "Knowles, Kendrick"]
[Black "Reimanis, Ritvars"]
[Result "0-1"]
[WhiteElo "1907"]
[BlackElo "2377"]
[Annotator "TA"]
[PlyCount "86"]
[EventDate "2022.??.??"]
[TimeControl "60"]

{[%evp 9,86,9,5,-25,-27,-47,-25,-31,-30,-44,-32,-35,-30,-76,-82,-68,-41,-87,
-42,-55,-47,-72,-40,-58,-34,-82,-83,-156,-136,-153,-143,-143,-128,-127,-126,
-247,-244,-243,-178,-329,-335,-418,-418,-411,-408,-400,-384,-572,-566,-569,
-564,-621,-612,-593,-552,-650,-641,-814,-809,-777,-771,-1167,-972,-12837,
-12837,-12837,-12838,-2541,-1145,-903,-832,-12838,-12838,-12837,-12836,-12837,
-12831,-12839,-651]} 1. Nf3 {[%emt 0:00:30]} c5 {[%emt 0:00:22]} 2. g3 {
[%emt 0:00:20]} Nc6 {[%emt 0:00:10]} 3. Bg2 {[%emt 0:00:06]} e5 {[%emt 0:00:33]
} 4. d3 {[%emt 0:01:34]} g6 {[%emt 0:06:55]} 5. Nc3 {[%emt 0:01:42]} Bg7 {
[%emt 0:00:41]} 6. Bg5 {[%emt 0:01:49] A04: Unusual lines after 1 Nf3 and
King's Indian Attack.} f6 {[%emt 0:00:23] [#]} 7. Bc1 $146 {[%emt 0:01:44]} ({
Predecessor:} 7. Bd2 Nge7 8. e4 d6 9. Qc1 h6 10. O-O Be6 11. a3 Qd7 12. Re1 g5
13. b4 {0-1 (36) Milovic,J (2307)-Kalezic,B (2447) Niksic 2016}) 7... Nge7 {
[%emt 0:04:48]} 8. e4 {[%emt 0:00:37] Black has an edge.} d6 {[%emt 0:04:41]}
9. b3 {[%emt 0:00:50]} b5 {[%emt 0:05:51][%cal Yb7b5,Yb5b4]} 10. O-O {[%emt 0:
01:03]} Rb8 {[%emt 0:07:38]} 11. a4 {[%emt 0:01:26]} (11. Nd5 $11) 11... b4 $17
{[%emt 0:01:56]} 12. Ne2 {[%emt 0:01:56]} f5 {[%emt 0:16:41]} 13. Bb2 {[%emt 0:
12:40]} (13. Nh4 $15) 13... fxe4 {[%emt 0:15:29]} 14. dxe4 {[%emt 0:00:48]} O-O
{[%emt 0:00:21]} 15. Qd3 {[%emt 0:01:11]} Kh8 {[%emt 0:00:00]} 16. Nd2 {
[%emt 0:01:45]} Nd4 {[%emt 0:00:55]} 17. Bxd4 {[%emt 0:00:51]} (17. Nxd4 $15
cxd4 18. f4) 17... cxd4 {[%emt 0:01:57] Black continues to play with
concentration.} 18. Nc4 {[%emt 0:00:32]} (18. f4 $142) 18... Ba6 {[%emt 0:00:
00]} 19. Bh3 {[%emt 0:01:04]} d5 {[%emt 0:02:50]} 20. exd5 {[%emt 0:00:34]}
Qxd5 {[%emt 0:00:12]} 21. Bg2 {[%emt 0:02:28] [#] Inhibits e4.} Qc5 {[%emt 0:
00:00]} 22. f4 {[%emt 0:01:06]} (22. Rae1 $17) 22... Nf5 $19 {[%emt 0:07:21]}
23. fxe5 {[%emt 0:01:25]} Rfe8 {[%emt 0:01:21]} 24. Rxf5 $2 {[%emt 0:08:50]} (
24. Rac1) 24... gxf5 {[%emt 0:00:46]} 25. Qxd4 {[%emt 0:01:00]} Qxd4+ {[%emt 0:
00:00] [#] Remove Defender} 26. Nxd4 {[%emt 0:00:06]} Bxc4 {[%emt 0:00:00]} 27.
Nc6 {[%emt 0:03:04]} Be6 {[%emt 0:01:42]} 28. Rd1 {[%emt 0:03:02]} (28. Nxb8 {
was the only chance.} Rxb8 29. Rd1) 28... Rbc8 {[%emt 0:00:14] Black is
clearly winning.} 29. Nxb4 {[%emt 0:02:08]} Bxe5 {[%emt 0:00:21]} 30. Nc6 {
[%emt 0:00:19]} Bc7 {[%emt 0:00:50]} 31. a5 {[%emt 0:00:45]} a6 {[%emt 0:00:00]
} 32. c4 {[%emt 0:01:41]} f4 {[%emt 0:00:17]} 33. Rd4 {[%emt 0:03:52]} fxg3 {
[%emt 0:00:42]} 34. hxg3 {[%emt 0:00:37]} Bxg3 {[%emt 0:02:25]} 35. b4 {
[%emt 0:01:05]} Bf5 {[%emt 0:00:24]} 36. Bd5 {[%emt 0:00:13]} Bh3 {[%emt 0:00:
00][%cal Re8e1]} 37. Rd1 {[%emt 0:01:22]} Re3 {[%emt 0:00:33]} 38. Nd4 {
[%emt 0:00:59]} Rce8 {[%emt 0:00:44] ( -> ...Re1+)} 39. Nf3 {[%emt 0:00:11]
Against Re1+} Bg4 {[%emt 0:03:02]} 40. Kg2 {[%emt 0:00:25]} Bxf3+ {[%emt 0:00:
00]} 41. Bxf3 {[%emt 0:30:03]} Be1 {[%emt 0:30:16]} 42. Bd5 {[%emt 0:01:25]}
Bxb4 {[%emt 0:00:13]} 43. Ra1 {[%emt 0:00:37]} Ra3 {[%emt 0:00:22] Weighted
Error Value: White=0.85/Black=0.17 (very precise)} 0-1

[Event "44th Chess Olympiad Open 2022"]
[Site "Chennai"]
[Date "2022.07.29"]
[Round "1.64"]
[White "Albury, Noah"]
[Black "Ungurs, Edgars"]
[Result "0-1"]
[WhiteElo "1324"]
[BlackElo "2206"]
[Annotator "RC"]
[PlyCount "56"]
[EventDate "2022.??.??"]
[TimeControl "60"]

1. e4 {[%emt 0:00:04]} c6 {[%emt 0:00:35]} 2. d4 {[%emt 0:00:33]} d5 {[%emt 0:
00:00]} 3. exd5 {[%emt 0:01:27]} cxd5 {[%emt 0:00:07]} 4. Nf3 {[%emt 0:02:02]}
Nc6 {[%emt 0:01:06]} 5. Bd3 {[%emt 0:03:01]} Bg4 {[%emt 0:01:34]} 6. c3 {
[%emt 0:05:24]} e6 {[%emt 0:00:57]} 7. Bf4 {[%emt 0:04:22]} Bd6 {[%emt 0:08:28]
} 8. Bxd6 {[%emt 0:03:40]} Qxd6 {[%emt 0:00:08]} 9. h3 {[%emt 0:01:10]} Bh5 {
[%emt 0:00:52]} 10. Nbd2 {[%emt 0:02:25]} Nge7 {[%emt 0:02:45]} 11. O-O {
[%emt 0:03:58]} Bg6 {[%emt 0:21:22]} 12. Qc2 {[%emt 0:05:52]} Rc8 {[%emt 0:00:
00]} 13. Rfe1 {[%emt 0:06:48]} O-O {[%emt 0:02:03]} 14. Bxg6 {[%emt 0:09:07]}
Nxg6 {[%emt 0:00:31]} 15. Nf1 {[%emt 0:04:48]} b5 {[%emt 0:05:19]} 16. Qe2 {
[%emt 0:07:25]} b4 {[%emt 0:02:02]} 17. Ne5 {[%emt 0:10:33]} bxc3 {[%emt 0:00:
00]} 18. bxc3 {[%emt 0:06:24]} Ncxe5 {[%emt 0:02:47]} 19. dxe5 {[%emt 0:00:09]}
Qa3 {[%emt 0:00:24]} 20. Nd2 {[%emt 0:04:55]} Qxc3 {[%emt 0:02:53]} 21. Nf3 {
[%emt 0:01:33]} Qa3 {[%emt 0:11:05]} 22. Qe3 {[%emt 0:05:12]} Rc3 {[%emt 0:00:
00]} 23. Qg5 {[%emt 0:01:05]} Rfc8 {[%emt 0:03:48]} 24. Reb1 {[%emt 0:06:40]}
h6 {[%emt 0:01:31]} 25. Qd2 {[%emt 0:02:22]} Rc2 {[%emt 0:03:07]} 26. Qb4 {
[%emt 0:00:51]} Rc1+ {[%emt 0:00:46]} 27. Rxc1 {[%emt 0:00:55]} Rc5 {[%emt 0:
00:00]} 28. Rc2 Rxc2 {[%emt 0:00:31]} 0-1

[Event "44th Chess Olympiad Open 2022"]
[Site "Chennai"]
[Date "2022.07.29"]
[Round "1.65"]
[White "Zia, Tahsin Tajwar"]
[Black "Njau, Albert"]
[Result "1-0"]
[WhiteElo "2307"]
[BlackElo "1842"]
[Annotator "TA"]
[PlyCount "49"]
[EventDate "2022.??.??"]
[TimeControl "60"]

{[%evp 14,49,48,18,71,78,134,113,116,112,161,70,313,301,546,529,565,487,489,
477,814,799,869,518,493,490,570,571,531,432,628,591,1012,1031,1019,1014,894,
637]} 1. d4 {[%emt 0:00:09]} d5 {[%emt 0:00:20]} 2. Nf3 {[%emt 0:00:11]} Nf6 {
[%emt 0:00:28]} 3. c4 {[%emt 0:00:19]} e6 {[%emt 0:00:27]} 4. g3 {[%emt 0:00:
00]} Be7 {[%emt 0:01:24]} 5. Bg2 {[%emt 0:00:05]} O-O {[%emt 0:01:07]} 6. O-O {
[%emt 0:00:24]} c5 {[%emt 0:01:28]} 7. cxd5 {[%emt 0:00:34]} Nxd5 {[%emt 0:00:
00]} 8. e4 {[%emt 0:04:33][%cal Ye2e4,Ye4d5,Yd5d6,Yd6d7]} Nb4 {[%emt 0:05:13]
E06: Closed Catalan: Early deviations.} (8... Nb6 $11) 9. a3 $16 {[%emt 0:00:
23]} Qa5 {[%emt 0:03:29] [#]} ({Better is} 9... N4c6) 10. d5 $146 {[%emt 0:14:
08]} ({Predecessor:} 10. dxc5 Rd8 11. Bd2 N8c6 12. Qb3 Bxc5 13. axb4 Qb6 14.
Na3 Nxb4 15. Nc4 {1-0 (15) Aloma Vidal,R (2416)-Krokay,U (1926) Caleta 2014})
10... exd5 {[%emt 0:14:27] White is better.} 11. exd5 {[%emt 0:00:41]} Qa6 {
[%emt 0:00:28] [#]} (11... Bf5 $16 {is a better defense.}) 12. Nc3 {[%emt 0:21:
56]} (12. Ne1 $1 $18) 12... Bf5 $2 {[%emt 0:07:13] [#] This move loses the
game for Black.} ({Black should play} 12... Nd3 $14) 13. Bg5 $1 $18 {[%emt 0:
05:22]} Nc2 $2 {[%emt 0:22:33]} (13... Bxg5 {was called for.} 14. axb4 (14.
Nxg5 Nd3 $11) 14... Qg6 15. Nxg5 Qxg5 16. bxc5 a5) 14. Bxe7 {[%emt 0:00:00]
White is clearly winning.} Re8 {[%emt 0:00:30] [#]} 15. d6 $1 {[%emt 0:00:00]}
Nxa1 {[%emt 0:02:05]} 16. Qxa1 {[%emt 0:00:29]} Be6 {[%emt 0:12:05]} (16... Nc6
$142 17. Nd5 Rab8) 17. Ng5 {[%emt 0:03:57] And now Qb1 would win.} Nc6 {
[%emt 0:01:11]} 18. Nxe6 {[%emt 0:00:55]} fxe6 {[%emt 0:00:19]} 19. Bg5 {
[%emt 0:02:28]} h6 {[%emt 0:03:58]} 20. d7 {[%emt 0:01:33]} Rf8 {[%emt 0:00:32]
} 21. Bxc6 {[%emt 0:00:50]} hxg5 {[%emt 0:00:27]} (21... Qxc6 $142 22. Be7 Qxd7
) 22. Be4 {[%emt 0:00:46] Qd1 is the strong threat.} g4 {[%emt 0:05:20]} 23.
Qd1 {[%emt 0:00:55]} Rad8 {[%emt 0:00:38]} 24. Qxg4 {[%emt 0:00:52]} Rxd7 {
[%emt 0:04:45]} 25. Qh5 {[%emt 0:00:30] Weighted Error Value: White=0.56/
Black=1.04} 1-0

[Event "44th Chess Olympiad Open 2022"]
[Site "Chennai"]
[Date "2022.07.29"]
[Round "1.65"]
[White "Mehdi Hasan Parag"]
[Black "Veer Gandhi"]
[Result "1-0"]
[WhiteElo "2227"]
[BlackElo "1545"]
[Annotator "RC"]
[PlyCount "139"]
[EventDate "2022.??.??"]
[TimeControl "60"]

1. e4 {[%emt 0:00:04]} e5 {[%emt 0:00:14]} 2. Nf3 {[%emt 0:00:06]} Nc6 {
[%emt 0:00:13]} 3. Bb5 {[%emt 0:00:05]} Nf6 {[%emt 0:00:59]} 4. d3 {[%emt 0:00:
00]} Bc5 {[%emt 0:12:34]} 5. c3 {[%emt 0:00:22]} d6 {[%emt 0:07:24]} 6. O-O {
[%emt 0:01:55]} Bd7 {[%emt 0:15:56]} 7. a4 {[%emt 0:01:33]} a6 {[%emt 0:04:41]}
8. Bc4 {[%emt 0:00:23]} h6 {[%emt 0:02:54]} 9. Nbd2 {[%emt 0:02:29]} Qe7 {
[%emt 0:02:08]} 10. Re1 {[%emt 0:02:48]} Bg4 {[%emt 0:21:33]} 11. Nf1 {[%emt 0:
00:00]} Be6 {[%emt 0:07:10]} 12. Ng3 {[%emt 0:01:18]} Bxc4 {[%emt 0:00:51]} 13.
dxc4 {[%emt 0:00:04]} a5 {[%emt 0:02:15]} 14. Bd2 {[%emt 0:02:01]} g6 {[%emt 0:
00:00]} 15. Qc1 {[%emt 0:00:30]} Ng4 {[%emt 0:01:21]} 16. Re2 {[%emt 0:00:43]}
h5 {[%emt 0:00:48]} 17. h3 {[%emt 0:00:28]} Nf6 {[%emt 0:00:10]} 18. Bg5 {
[%emt 0:01:09]} Qe6 {[%emt 0:00:11]} 19. b3 {[%emt 0:02:01]} Nb8 {[%emt 0:00:
00]} 20. Rb1 {[%emt 0:01:41]} Nbd7 {[%emt 0:00:14]} 21. Nf1 {[%emt 0:05:16]}
Bb6 {[%emt 0:01:26]} 22. Qc2 {[%emt 0:04:42]} Bc5 {[%emt 0:00:51]} 23. Ne3 {
[%emt 0:00:41]} c6 {[%emt 0:06:15]} 24. b4 {[%emt 0:00:53]} Bb6 {[%emt 0:00:19]
} 25. c5 {[%emt 0:01:11]} dxc5 {[%emt 0:00:43]} 26. bxc5 {[%emt 0:00:07]} Bxc5
{[%emt 0:01:30]} 27. Rxb7 {[%emt 0:00:15]} O-O {[%emt 0:00:52]} 28. Qd3 {
[%emt 0:03:00]} Rfb8 {[%emt 0:02:12]} 29. Reb2 {[%emt 0:03:04]} Rxb7 {[%emt 0:
00:00]} 30. Rxb7 {[%emt 0:00:08]} Ra7 {[%emt 0:00:43]} 31. Rb2 {[%emt 0:00:51]}
Bf8 {[%emt 0:00:21]} 32. Nc4 {[%emt 0:03:43]} Nc5 {[%emt 0:00:38]} 33. Qd8 {
[%emt 0:02:04]} Nfxe4 {[%emt 0:00:57]} 34. Ncxe5 {[%emt 0:02:04]} Qd5 {[%emt 0:
00:00]} 35. Rb8 {[%emt 0:04:37]} Qxd8 {[%emt 0:00:10]} 36. Bxd8 {[%emt 0:00:29]
} Rb7 {[%emt 0:00:50]} 37. Ra8 {[%emt 0:01:32]} Kg7 {[%emt 0:00:37]} 38. g4 {
[%emt 0:11:27]} hxg4 {[%emt 0:00:25]} 39. hxg4 {[%emt 0:00:01]} Rb1+ {[%emt 0:
00:00]} 40. Kg2 {[%emt 0:00:03]} Rb7 {[%emt 0:00:26]} 41. Nxc6 {[%emt 0:32:22]}
Nxc3 {[%emt 0:30:40]} 42. g5 {[%emt 0:01:42]} N3e4 {[%emt 0:00:00]} 43. Bf6+ {
[%emt 0:00:00]} Nxf6 {[%emt 0:00:00]} 44. gxf6+ {[%emt 0:00:00]} Kxf6 {[%emt 0:
00:00]} 45. Rxf8 {[%emt 0:00:00]} Rc7 {[%emt 0:00:00]} 46. Nxa5 {[%emt 0:00:00]
} Ra7 {[%emt 0:00:00]} 47. Nc6 {[%emt 0:00:00]} Rc7 {[%emt 0:00:43]} 48. Nb4 {
[%emt 0:00:00]} Ra7 {[%emt 0:00:58]} 49. Nd5+ {[%emt 0:00:00]} Kg7 {[%emt 0:00:
00]} 50. Rc8 {[%emt 0:00:00]} Nxa4 {[%emt 0:00:51]} 51. Ne5 {[%emt 0:00:00]}
Ra5 {[%emt 0:01:03]} 52. Rd8 {[%emt 0:00:00]} Nb6 {[%emt 0:00:21]} 53. Nxb6 {
[%emt 0:00:00]} Rxe5 {[%emt 0:00:08]} 54. Nd5 {[%emt 0:00:00]} Re6 {[%emt 0:00:
00]} 55. Kf3 {[%emt 0:00:00]} Ra6 {[%emt 0:00:29]} 56. Rd7 {[%emt 0:00:00]} Ra4
{[%emt 0:01:03]} 57. Nc7 {[%emt 0:00:00]} Ra3+ {[%emt 0:00:00]} 58. Ke4 {
[%emt 0:00:00]} Ra2 {[%emt 0:00:22]} 59. f3 {[%emt 0:00:00]} Re2+ {[%emt 0:00:
00]} 60. Kf4 {[%emt 0:00:00]} Re1 {[%emt 0:00:16]} 61. Nb5 {[%emt 0:00:00]} Re6
{[%emt 0:01:37]} 62. Nd6 {[%emt 0:00:00]} Rf6+ {[%emt 0:00:00]} 63. Ke4 {
[%emt 0:00:00]} Re6+ {[%emt 0:00:00]} 64. Kd5 {[%emt 0:00:00]} Re1 {[%emt 0:00:
00]} 65. Rxf7+ {[%emt 0:00:00]} Kg8 {[%emt 0:00:25]} 66. Ra7 {[%emt 0:00:00]}
Re3 {[%emt 0:02:03]} 67. f4 {[%emt 0:00:00]} Re1 {[%emt 0:00:24]} 68. Ne4 {
[%emt 0:00:00]} Re2 {[%emt 0:00:41]} 69. Nf6+ {[%emt 0:00:00]} Kh8 {[%emt 0:00:
00]} 70. Rh7# {[%emt 0:00:00]} 1-0

[Event "44th Chess Olympiad Open 2022"]
[Site "Chennai"]
[Date "2022.07.29"]
[Round "1.65"]
[White "Mlawa, Hemed"]
[Black "Hossain, Enamul"]
[Result "0-1"]
[WhiteElo "1896"]
[BlackElo "2377"]
[Annotator "ChessBase"]
[PlyCount "40"]
[EventDate "2022.??.??"]
[TimeControl "60"]

1. d4 {[%emt 0:00:44]} Nf6 {[%emt 0:00:29]} 2. Bf4 {[%emt 0:00:11]} g6 {
[%emt 0:00:41]} 3. Nc3 {[%emt 0:02:20]} Bg7 {[%emt 0:00:30]} 4. e4 {[%emt 0:00:
00]} d6 {[%emt 0:00:30]} 5. Qd2 {[%emt 0:00:30]} c6 {[%emt 0:00:30]} 6. O-O-O {
[%emt 0:00:30]} b5 {[%emt 0:00:30]} 7. f3 {[%emt 0:00:30]} Nbd7 {[%emt 0:00:30]
} 8. Bh6 {[%emt 0:00:30]} Bxh6 {[%emt 0:00:30]} 9. Qxh6 {[%emt 0:00:30]} b4 {
[%emt 0:00:30]} 10. Nb1 {[%emt 0:00:30]} Qa5 {[%emt 0:00:30]} 11. Bc4 {[%emt 0:
00:00]} d5 {[%emt 0:00:30]} 12. exd5 {[%emt 0:00:30]} cxd5 {[%emt 0:00:30]} 13.
Bb3 {[%emt 0:00:30]} Qb5 {[%emt 0:00:30]} 14. a4 {[%emt 0:00:30]} bxa3 {
[%emt 0:00:30]} 15. Nxa3 {[%emt 0:00:30]} Qc6 {[%emt 0:00:30]} 16. Ne2 {
[%emt 0:00:30]} a5 {[%emt 0:00:30]} 17. Nc3 {[%emt 0:00:30]} a4 {[%emt 0:00:30]
} 18. Bxa4 {[%emt 0:00:30]} Rxa4 {[%emt 0:00:30]} 19. Nxa4 {[%emt 0:00:30]}
Qxa4 {[%emt 0:00:30]} 20. Rhe1 {[%emt 0:00:30]} e6 {[%emt 0:00:30]} 0-1